Workbook

Sheet Relevés
G1: RELEVE GROUPE DES LOCATAIRES | R1: Base
E2: =[1]Base!B3 -> Immeuble Rue De la Fléchère 17 - M. Deblue | K2: =[1]Base!B5 -> Relevés par G. Vocat
E3: =[1]Base!B4 -> CH - 1260 Nyon
G4: Année(s) : | I4: =F8&" / "&F14 -> 2024 / 2025 | K4: Consommation Annuelle d'eau en M3 : | O4: =[1]Immeuble!I20 -> -1229.471
I5: Coût estimé des Charges + Taxes en CHF : | O5: ='[1]Prix M3 Eau'!F17 -> 1022.879929 | Q5: EN KWH | R5: EN KWH
D6: Jour | E6: Mois | F6: Année | G6: Kw Electricité Immeuble | H6: Conso. Mensuelle Immeuble | I6: Kw Electricité Studio | J6: Conso. Mensuelle Studio | K6: Kw Electricité 1er gauche | L6: Conso. Mensuelle 1er Gauche | M6: Kw Electricité 1er droit | N6: Conso. Mensuelle 1er droit | O6: Compteur d'Eau | P6: Conso. Mensuelle m 3 | Q6: Total Général de Consommation Electricité | R6: Consommation Mensuelle Electricité De TOUT l'Immeuble | S6: Commentaires
D7: 30 | E7: Juin | F7: =IF(D7>0,TEXT([1]Base!$C$9,"aaaa"),"") -> 2024 | G7: 18272 | H7: Conso | I7: 59965 | J7: ↓ | K7: 36335 | L7: ↓ | M7: 30472 | N7: ↓ | O7: 1229.471 | P7: M3 | Q7: =SUM(G7:M7) -> 145044 | R7: =I7+J8+L8+N8+K29 -> 60605 | S7: Situation de départ
D8: 31 | E8: =IF(D8>0,"Juillet","") -> Juillet | F8: =IF(D8>0,TEXT([1]Base!$C$9,"aaaa"),"") -> 2024 | G8: 18296 | H8: =IF(G8<>"",G8-G7,"") -> 24 | I8: 60100 | J8: =IF(I8<>"",I8-I7,"") -> 135 | K8: 36662 | L8: =IF(K8<>"",K8-K7,"") -> 327 | M8: 30650 | N8: =IF(M8<>"",M8-M7,"") -> 178 | O8: 1279.782 | P8: =IF(O8<>"",O8-O7,"") -> 50.311 | Q8: 146194 | R8: =IF(Q8>0,Q8-Q7,"") -> 1150
D9: 31 | E9: =IF(D9>0,"Août","") -> Août | F9: =IF(D9>0,TEXT([1]Base!$C$9,"aaaa"),"") -> 2024 | G9: 18305 | H9: =IF(G9<>"",G9-G8,"") -> 9 | I9: 60149 | J9: =IF(I9<>"",I9-I8,"") -> 49 | K9: 36861 | L9: =IF(K9<>"",K9-K8,"") -> 199 | M9: 30715 | N9: =IF(M9<>"",M9-M8,"") -> 65 | O9: 1297.38 | P9: =IF(O9<>"",O9-O8,"") -> 17.598 | Q9: 146287 | R9: 93
D10: 30 | E10: =IF(D10>0,"Septembre","") -> Septembre | F10: =IF(D10>0,TEXT([1]Base!$C$9,"aaaa"),"") -> 2024 | G10: 18320 | H10: 15 | I10: 60175 | J10: 26 | K10: 36981 | L10: 120 | M10: 30775 | N10: =IF(M10<>"",M10-M9,"") -> 60 | O10: 1309.04 | P10: 11.66 | Q10: 146412 | R10: 125
D11: 31 | E11: =IF(D11>0,"Octobre","") -> Octobre | F11: =IF(D11>0,TEXT([1]Base!$C$9,"aaaa"),"") -> 2024 | G11: 18339 | H11: 19 | I11: 60202 | J11: 27 | K11: 37105 | L11: 124 | M11: 30849 | N11: 74 | O11: 1323.654 | P11: 14.614 | Q11: 146665 | R11: 253
D12: 30 | E12: =IF(D12>0,"Novembre","") -> Novembre | F12: =IF(D12>0,TEXT([1]Base!$C$9,"aaaa"),"") -> 2024 | G12: 18360 | H12: 21 | I12: 60212 | J12: 10 | K12: 37214 | L12: 109 | M12: 30920 | N12: 71 | O12: 1336 | P12: 12.346 | Q12: 146846 | R12: 181
D13: 31 | E13: =IF(D13>0,"Décembre","") -> Décembre | F13: =IF(D13>0,TEXT([1]Base!$C$9,"aaaa"),"") -> 2024 | G13: 183.91 | H13: -18176.09
D14: 31 | E14: =IF(D14>0,"Janvier","") -> Janvier | F14: =IF(D14>0,TEXT([1]Base!$C$11,"aaaa"),"") -> 2025 | Q14: 0
D15: 28 | E15: =IF(D15>0,"Février","") -> Février | F15: =IF(D15>0,TEXT([1]Base!$C$11,"aaaa"),"") -> 2025 | Q15: 0
D16: 31 | E16: =IF(D16>0,"Mars","") -> Mars | F16: =IF(D16>0,TEXT([1]Base!$C$11,"aaaa"),"") -> 2025 | Q16: 0
D17: 30 | E17: =IF(D17>0,"Avril","") -> Avril | F17: =IF(D17>0,TEXT([1]Base!$C$11,"aaaa"),"") -> 2025 | Q17: 0
D18: 31 | E18: =IF(D18>0,"Mai","") -> Mai | F18: =IF(D18>0,TEXT([1]Base!$C$11,"aaaa"),"") -> 2025 | Q18: 0
D19: 30 | E19: =IF(D19>0,"Juin","") -> Juin | F19: =IF(D19>0,TEXT([1]Base!$C$11,"aaaa"),"") -> 2025 | Q19: 0
D21: =IF(E19<>"","Consommations Annuelles","") -> Consommations Annuelles | G21: =G24 ->  | H21: =SUM(H8:H19) -> -18088.09 | I21: =I24 ->  | J21: =SUM(J8:J19) -> 247 | K21: =K24 ->  | L21: =SUM(L8:L19) -> 879 | M21: =M24 ->  | N21: =SUM(N8:N19) -> 448 | O21: =O24 ->  | P21: =SUM(P8:P19) -> 106.529 | R21: =R24 -> 1802
K22: Coût de la Consommation électrique générale de tout l'immeuble (sans compteur) | R22: ='[1]Cal. kwh '!C23*Relevés!R21 -> 435.5743556
G24: =IF(G19>0,G19-G7,"") ->  | I24: =IF(I19>0,I19-I7,"") ->  | K24: =IF(K19>0,K19-K7,"") ->  | M24: =IF(M19>0,M19-M7,"") ->  | O24: =IF(O19>0,O19-O7,"") ->  | Q24: =Q19-Q7 -> -145044 | R24: =SUM(R8:R19) -> 1802
